bitfinex/quotes_ETHUSD_20251119
["timestamp","ask_amount","ask_price","bid_price","bid_amount"]
[1763579346706,0.1878,2903.0,2901.1,1.03570693]
[1763579346940,0.1878,2902.3,2901.2,0.12]
[1763579347123,0.1878,2902.3,2901.6,0.90699264]
[1763579347329,0.1878,2902.3,2901.8,0.405504]
[1763579347532,0.1878,2902.3,2901.7,0.12]
[1763579348047,0.4608,2902.2,2901.6,0.12]
[1763579348232,0.4608,2902.2,2901.1,0.90699264]
[1763579348435,0.1808,2901.7,2900.5,8.46699577]
[1763579348670,0.4608,2902.2,2901.0,8.12009577]
[1763579348832,0.4608,2902.2,2901.1,1.02699264]
[1763579349026,0.1808,2902.6,2901.9,1.31249664]
[1763579349247,0.1878,2903.0,2902.1,0.405504]
[1763579349540,0.1808,2902.9,2902.1,0.405504]
[1763579350326,0.4608,2902.8,2901.9,0.405504]
[1763579350523,0.1878,2903.0,2902.1,0.405504]
[1763579350726,0.1808,2903.2,2902.3,0.405504]
[1763579350928,0.90699264,2904.3,2902.3,0.405504]
[1763579350929,0.91634792,2904.6,2902.5,0.405504]
[1763579351177,0.1808,2903.5,2902.8,1.31249664]
[1763579351477,0.1808,2904.8,2903.3,1.31249664]
[1763579351763,0.1808,2905.0,2904.0,1.31249664]
[1763579351963,0.1808,2905.0,2904.2,0.405504]
[1763579352326,0.1808,2905.0,2904.4,0.405504]
[1763579352556,3.62191182,2906.1,2905.0,0.405504]
[1763579352557,0.1808,2905.6,2905.0,0.405504]
[1763579352756,0.1808,2906.1,2905.1,0.12]
[1763579352971,0.1808,2906.1,2905.2,0.405504]
[1763579353129,0.1808,2905.2,2903.8,0.92609264]
[1763579353328,0.4608,2906.0,2904.3,1.31249664]
[1763579353527,0.4608,2906.0,2904.9,0.405504]
[1763579353528,0.1808,2905.6,2904.9,0.405504]
[1763579353962,0.6416,2905.6,2905.0,0.12]
[1763579354264,0.6416,2905.6,2904.7,0.12]
[1763579354472,0.4608,2905.5,2904.6,0.12]
[1763579354966,0.4608,2905.5,2904.2,0.405504]
[1763579354967,0.1808,2904.7,2904.2,0.405504]
[1763579355263,0.1808,2904.7,2904.3,0.12]
[1763579355631,0.6416,2904.9,2904.4,0.405504]
[1763579356138,0.6416,2905.6,2904.4,0.424604]
[1763579356339,0.6416,2905.6,2904.4,0.0191]
[1763579356539,0.6416,2905.6,2904.6,0.405504]
[1763579356739,0.6416,2906.1,2904.8,0.405504]
[1763579357060,0.1808,2905.9,2905.0,0.405504]
[1763579357274,0.1808,2905.9,2905.2,0.405504]
[1763579357767,0.002,2905.3,2904.8,0.405504]
[1763579357981,0.002,2905.3,2905.1,8.25037153]
[1763579358268,0.002,2905.3,2905.2,1.31249664]
[1763579358428,0.1808,2907.2,2905.2,1.33159664]
[1763579358632,0.1808,2907.2,2906.0,1.31249664]
[1763579358832,0.1808,2907.2,2906.2,0.405504]
[1763579359061,0.4608,2907.4,2906.2,0.405504]
[1763579359361,0.1808,2907.7,2906.5,1.31249664]
[1763579359562,0.1808,2907.7,2906.6,0.525504]
[1763579360131,0.1808,2909.0,2907.0,1.31249664]
[1763579360132,0.4608,2908.4,2907.0,1.31249664]
[1763579360383,0.4608,2908.1,2907.1,0.12]
[1763579360664,0.4608,2908.1,2906.6,0.405504]
[1763579360970,0.4608,2908.1,2906.8,0.405504]
[1763579361636,0.4608,2908.1,2907.0,0.405504]
[1763579362545,0.1808,2908.5,2907.0,0.405504]
[1763579362872,0.4608,2908.4,2907.1,0.405504]
[1763579363082,0.4608,2908.4,2907.2,0.12]
[1763579363233,0.4608,2908.4,2907.4,0.405504]
[1763579363651,0.4608,2908.4,2907.6,0.405504]
[1763579363856,0.4608,2908.4,2907.6,0.525504]
[1763579364083,0.1808,2908.5,2907.7,0.12]
[1763579364301,0.4608,2908.4,2907.7,0.12]
[1763579364503,0.4608,2908.4,2906.9,0.92209264]
[1763579364798,0.4608,2908.4,2907.1,0.405504]
[1763579364951,0.1808,2908.5,2907.1,0.405504]
[1763579365147,0.1808,2908.7,2907.4,1.31249664]
[1763579365391,0.1808,2908.7,2907.4,0.90699264]
[1763579365576,0.4708,2908.6,2907.5,0.525504]
[1763579365758,0.4708,2908.6,2907.1,1.31249664]
[1763579365961,0.4708,2908.6,2906.4,0.4608]
[1763579366292,0.4708,2908.6,2906.2,0.70018098]
[1763579366293,0.90699264,2908.5,2906.5,0.12]
[1763579366494,0.8253977,2908.4,2906.5,1.02699264]
[1763579366794,0.4708,2908.5,2906.7,0.405504]
[1763579367301,0.4708,2908.5,2906.9,0.405504]
[1763579367457,0.4708,2908.5,2907.0,0.12]
[1763579367972,0.4708,2908.5,2907.1,0.405504]
[1763579368503,7.34723745,2908.5,2906.9,0.12]
[1763579368706,7.34723745,2908.5,2906.2,0.67236002]
[1763579368707,0.1855,2907.2,2906.2,0.67236002]
[1763579368863,0.1855,2907.2,2906.5,0.12]
[1763579369205,0.6563,2907.7,2906.2,0.0151]
[1763579369358,0.4708,2907.4,2906.3,0.12]
[1763579369795,0.4708,2907.4,2905.9,8.25037153]
[1763579369983,0.4708,2907.4,2906.1,0.67270502]
[1763579370288,0.4708,2907.5,2906.2,0.0151]
[1763579370593,0.4708,2907.5,2906.1,0.67270502]
[1763579370772,0.4708,2907.5,2906.2,0.12]
[1763579370958,0.4708,2907.5,2905.9,0.0151]
[1763579371155,0.4708,2907.5,2906.0,0.12]
[1763579371495,0.4708,2907.5,2906.1,0.405504]
[1763579371665,0.4708,2907.5,2905.4,0.0151]
[1763579371666,3.91025603,2907.5,2905.4,0.0151]
[1763579371872,0.3910256,2907.4,2905.5,0.12]
[1763579372079,0.4708,2907.4,2905.8,8.25037153]
[1763579372267,0.4708,2907.4,2906.0,0.405504]
[1763579372591,0.1855,2907.7,2906.1,0.12]
[1763579372767,0.4708,2907.6,2906.1,0.1351]
[1763579373369,0.4708,2907.6,2906.0,0.405504]
[1763579373587,0.4708,2907.6,2906.1,0.12]
[1763579373789,0.4708,2907.6,2906.0,0.405504]
[1763579373996,0.40954757,2907.5,2906.1,0.12]
[1763579374291,0.4708,2907.6,2906.1,0.1351]
[1763579374699,0.4708,2907.6,2906.2,0.12]
[1763579374870,0.4708,2907.6,2906.4,0.405504]
[1763579375266,0.1855,2907.7,2906.5,0.420604]
[1763579375463,0.002,2907.7,2906.5,1.32759664]
[1763579375669,0.002,2907.7,2906.6,0.12]
[1763579376494,0.002,2907.7,2906.8,0.405504]
[1763579376695,0.002,2907.7,2906.7,0.12]
[1763579376696,0.4708,2907.6,2906.7,0.12]
[1763579377385,0.002,2907.7,2906.8,0.405504]
[1763579377573,0.4728,2907.7,2906.4,0.92209264]
[1763579377772,0.4728,2907.7,2906.6,0.405504]
[1763579378196,0.1885,2906.7,2906.5,0.12]
[1763579378396,0.4728,2907.7,2906.5,0.12]
[1763579379086,0.4728,2907.7,2906.6,0.405504]
[1763579379495,0.4728,2907.7,2906.8,0.405504]
[1763579379815,0.4728,2907.7,2906.6,0.405504]
[1763579380022,0.4728,2907.7,2906.8,0.405504]
[1763579380620,0.1885,2906.7,2906.4,0.12]
[1763579380826,0.1885,2906.7,2905.7,0.90699264]
[1763579381127,0.4663,2907.1,2905.8,0.12]
[1763579381279,0.4663,2907.6,2906.2,1.31249664]
[1763579381613,0.4663,2907.6,2906.4,0.405504]
[1763579381772,0.4663,2907.6,2906.6,0.405504]
[1763579382908,0.4663,2907.6,2906.5,0.12]
[1763579382909,0.2163,2907.6,2906.8,0.405504]
[1763579383315,0.2163,2907.6,2906.8,0.525504]
[1763579383817,0.2163,2907.6,2906.8,0.405504]
[1763579384024,0.2163,2907.6,2906.9,0.12]
[1763579384220,0.58203381,2907.6,2906.8,0.405504]
[1763579384527,0.2163,2907.6,2906.8,0.405504]
[1763579384722,0.002,2907.7,2906.2,0.90699264]
[1763579384723,0.1885,2906.9,2906.2,0.90699264]
[1763579385021,0.1885,2906.9,2906.0,0.1326]
[1763579385216,0.1885,2906.9,2906.1,0.12]
[1763579385217,0.6548,2906.9,2906.1,0.12]
[1763579385422,0.6548,2906.9,2906.2,0.12]
[1763579386018,0.1885,2906.9,2906.3,0.405504]
[1763579386712,0.1885,2906.9,2906.4,0.12]
[1763579387025,0.4663,2907.3,2906.5,0.405504]
[1763579387211,0.3163,2907.3,2906.5,0.405504]
[1763579387389,0.002,2907.7,2906.5,0.405504]
[1763579388335,0.36464239,2907.7,2906.5,0.405504]
[1763579388493,0.002,2907.7,2906.5,0.405504]
[1763579389330,0.4663,2907.6,2906.5,0.405504]
[1763579389715,0.4663,2907.6,2906.2,1.25289264]
[1763579389716,0.4663,2907.6,2906.7,0.405504]
[1763579392028,0.4663,2907.6,2906.3,0.751404]
[1763579392203,0.4663,2907.6,2906.5,0.405504]
[1763579392404,0.4663,2907.6,2906.6,0.12]
[1763579392605,0.39075039,2907.5,2906.5,0.405504]
[1763579392912,0.4663,2907.6,2906.5,0.525504]
[1763579393092,0.4663,2907.5,2906.5,0.525504]
[1763579393498,0.4663,2907.5,2906.1,0.3459]
[1763579393703,0.4663,2907.5,2906.2,0.871404]
[1763579393905,3.90572255,2907.5,2906.2,0.3459]
[1763579394109,0.39057226,2907.4,2906.2,0.4659]
[1763579394320,0.6772,2906.3,2905.9,0.3459]
[1763579394526,0.6772,2906.3,2905.4,0.69223166]
[1763579395146,0.4663,2906.7,2905.4,1.5992243]
[1763579395552,0.1885,2906.8,2905.7,8.52455898]
[1763579395760,0.1885,2906.8,2905.9,0.405504]
[1763579396046,0.6548,2906.8,2905.9,0.12]
[1763579396530,0.4663,2906.7,2905.9,0.12]
[1763579396917,0.4663,2906.7,2905.9,0.405504]
[1763579397115,0.4663,2906.7,2905.5,0.406504]
[1763579397116,0.4663,2906.7,2905.5,0.001]
[1763579397328,0.6772,2905.6,2905.5,0.001]
[1763579397722,0.1885,2905.8,2905.5,0.001]
[1763579397955,0.74301906,2906.5,2905.5,0.001]
[1763579398136,0.4663,2906.7,2905.5,0.001]
[1763579398320,0.4663,2906.7,2905.6,0.405504]
[1763579398522,0.95004525,2906.7,2905.6,0.405504]
[1763579398736,0.4663,2906.7,2905.6,0.405504]
[1763579398950,0.4663,2906.6,2905.6,0.405504]
[1763579400222,0.4663,2906.6,2905.6,0.12]
[1763579400415,0.4663,2906.6,2905.5,0.406504]
[1763579400416,0.4663,2906.6,2905.5,0.001]
[1763579400926,0.4663,2906.6,2905.5,0.90799264]
[1763579401126,0.6772,2905.6,2905.5,0.001]
[1763579401338,0.4663,2906.6,2905.5,0.001]
[1763579401538,0.74215709,2906.7,2905.5,0.001]
[1763579401539,0.4663,2906.5,2905.5,0.001]
[1763579401739,0.9311435,2906.5,2905.5,0.001]
[1763579401927,0.4663,2906.5,2905.5,0.001]
[1763579402130,0.4663,2906.4,2905.5,0.001]
[1763579402618,0.4887,2905.6,2905.5,0.001]
[1763579402855,0.4663,2906.4,2905.5,0.001]
[1763579403154,0.4663,2906.3,2905.5,0.001]
[1763579404145,3.62870916,2906.8,2905.7,0.405504]
[1763579404146,0.6548,2906.8,2905.7,0.405504]
[1763579404361,0.4663,2906.7,2905.7,0.405504]
[1763579404547,0.4663,2906.7,2905.5,0.121]
[1763579404935,0.87579273,2906.7,2905.5,0.001]
[1763579405264,1.78278537,2906.7,2905.5,0.001]
[1763579405449,0.4887,2905.6,2905.5,0.001]
[1763579405826,0.4663,2906.1,2905.5,0.001]
[1763579406160,0.4663,2906.6,2905.5,0.406504]
[1763579406360,0.1885,2906.8,2905.5,0.406504]
[1763579406659,0.1885,2906.8,2905.5,0.001]
[1763579406870,0.4663,2906.7,2905.5,0.001]
[1763579407377,0.4887,2905.6,2905.5,0.001]
[1763579407724,0.4663,2906.2,2905.5,0.001]
[1763579407950,0.4944,2905.6,2905.5,0.001]
[1763579408325,0.984,2905.6,2905.5,0.001]
[1763579408641,0.4944,2905.6,2905.5,0.001]
[1763579408829,0.4896,2906.0,2905.5,0.001]
[1763579409031,0.4896,2906.4,2905.5,0.001]
[1763579410176,4.32329274,2906.4,2905.5,0.001]
[1763579410561,0.88260459,2906.4,2905.5,0.001]
[1763579410759,0.4896,2906.3,2905.5,0.001]
[1763579411462,0.6781,2906.8,2905.6,0.405504]
[1763579411639,0.4896,2906.7,2905.5,0.001]
[1763579411844,1.39659264,2906.7,2905.5,0.001]
[1763579412064,7.72745025,2906.6,2905.5,0.001]
[1763579412268,0.4944,2905.6,2905.5,0.001]
[1763579412668,0.984,2905.6,2905.5,0.001]
[1763579412830,8.11905498,2905.9,2903.1,0.4171]
[1763579413034,0.90699264,2905.2,2903.2,0.4181]
[1763579413340,1.39220476,2905.1,2903.2,0.4181]
[1763579413532,1.39220476,2905.1,2903.8,0.90699264]
[1763579413752,0.4896,2905.1,2904.9,0.001]
[1763579413953,3.93194079,2905.0,2904.9,0.001]
[1763579414479,0.4896,2905.0,2904.9,0.001]
[1763579414643,3.93194079,2905.0,2904.9,0.001]
[1763579414843,0.4896,2905.0,2904.9,0.001]
[1763579415051,1.22699946,2905.0,2904.9,0.001]
[1763579415257,0.4896,2905.0,2904.9,0.001]
[1763579415994,3.93194079,2905.0,2904.9,0.001]
[1763579416377,3.93194079,2905.0,2902.9,0.001]
[1763579416378,0.90699264,2904.9,2903.0,0.1326]
[1763579416620,1.58289264,2904.9,2903.0,0.5507]
[1763579416917,1.33635742,2904.8,2903.0,0.1326]
[1763579417226,1.33635742,2904.8,2902.9,0.001]
[1763579417227,0.90699264,2904.2,2902.9,0.001]
[1763579417403,0.4896,2904.7,2903.1,0.1326]
[1763579417607,0.4896,2904.7,2903.2,0.405504]
[1763579417808,0.4896,2904.7,2902.9,0.001]
[1763579418105,0.90699264,2904.5,2902.9,0.001]
[1763579418288,0.77926223,2904.4,2902.9,0.001]
[1763579418492,0.405504,2904.3,2902.9,0.001]
[1763579418692,1.80209664,2904.3,2902.9,0.001]
[1763579418913,0.1863,2903.0,2902.9,0.001]
[1763579419425,0.4896,2903.7,2902.9,0.001]
[1763579420818,0.90699264,2903.6,2902.9,0.001]
[1763579421156,0.82843935,2903.5,2902.9,0.001]
[1763579421356,0.1863,2904.0,2902.9,0.001]
[1763579421357,0.4896,2903.9,2902.9,0.001]
[1763579421712,1.39659264,2903.9,2902.9,0.001]
[1763579421912,0.4896,2903.9,2902.9,0.001]
[1763579422151,0.4896,2903.8,2902.9,0.001]
[1763579422653,3.93338399,2903.8,2902.9,0.001]
[1763579422852,1.30033104,2903.7,2902.9,0.001]
[1763579423062,1.78993104,2903.7,2902.9,0.001]
[1763579423227,0.4896,2903.6,2902.9,0.001]
[1763579424119,6.88823832,2903.5,2902.9,0.001]
[1763579424320,0.4896,2903.6,2902.9,0.001]
[1763579424526,0.4896,2903.5,2902.9,0.001]
[1763579426234,0.90699264,2903.3,2902.9,0.001]
[1763579426437,0.4885,2903.0,2902.9,0.001]
[1763579427685,9.51454762,2903.0,2902.9,0.001]
[1763579427843,1.39549264,2903.0,2902.9,0.001]
[1763579428045,1.89239264,2903.0,2902.9,0.001]
[1763579428253,5.52634426,2903.0,2902.9,0.001]
[1763579429251,4.61935162,2903.0,2902.9,0.001]
[1763579430079,1.17463926,2903.0,2902.9,0.001]
[1763579430251,4.61935162,2903.0,2902.9,0.001]
[1763579431152,12.7384066,2903.0,2902.9,0.001]
[1763579431356,0.405504,2902.8,2902.6,0.001]
[1763579431581,0.405504,2902.6,2902.3,0.001]
[1763579431884,1.39549264,2902.4,2900.8,0.0356]
[1763579432071,1.00114476,2902.3,2900.8,0.0356]
[1763579432247,1.49804476,2902.3,2900.8,0.0356]
[1763579432443,0.4969,2902.2,2900.9,0.3253]
[1763579432785,1.40389264,2902.2,2900.8,0.0356]
[1763579432971,0.405504,2902.1,2900.8,0.0356]
[1763579433157,0.18093966,2902.0,2900.8,0.0356]
[1763579433364,0.18093966,2902.0,2900.5,0.3263]
[1763579433365,0.1823,2900.9,2900.5,0.001]
[1763579433547,0.6792,2900.9,2900.5,0.001]
[1763579434097,0.4969,2900.8,2900.5,0.001]
[1763579435172,1.40389264,2900.8,2900.5,0.001]
[1763579435367,0.50334503,2900.7,2900.5,0.001]
[1763579435667,0.1823,2900.9,2900.5,0.001]
[1763579435894,0.6792,2900.9,2900.5,0.001]
[1763579436067,0.1823,2901.1,2900.5,0.001]
[1763579436696,0.4885,2900.6,2900.5,0.001]
[1763579436897,0.4969,2901.0,2900.5,0.001]
[1763579437672,0.90951298,2901.0,2900.5,0.001]
[1763579437873,0.4969,2901.0,2900.5,0.001]
[1763579438106,0.1823,2901.1,2900.5,0.001]
[1763579438700,0.4527,2901.3,2900.5,0.001]
[1763579440681,0.4996,2900.6,2900.5,0.001]
[1763579440881,3.89946465,2901.3,2900.5,0.001]
[1763579441192,0.95288573,2901.2,2900.5,0.001]
[1763579441596,0.4527,2901.1,2900.5,0.001]
[1763579441829,0.4996,2900.6,2900.5,0.001]
[1763579442309,0.4996,2900.6,2900.3,0.001]
[1763579442310,1.45849636,2900.6,2900.3,0.001]
[1763579442481,0.4996,2900.4,2900.0,0.001]
[1763579442687,0.4527,2900.5,2900.0,0.001]
[1763579442884,0.4996,2900.1,2900.0,0.001]
[1763579443277,0.4527,2900.1,2900.0,0.001]
[1763579444593,4.8078496,2900.1,2900.0,0.001]
[1763579445205,5.2133536,2900.1,2900.0,0.001]
[1763579445403,1.35969264,2900.1,2900.0,0.001]
[1763579446505,1.85929264,2900.1,2900.0,0.001]
[1763579446715,5.83817804,2900.1,2900.0,0.001]
[1763579447589,2.39002108,2900.1,2900.0,0.001]
[1763579447791,5.3074496,2900.1,2900.0,0.001]
[1763579448526,1.85929264,2900.1,2900.0,0.001]
[1763579449221,5.3074496,2900.1,2900.0,0.001]
[1763579449431,0.9523,2900.1,2900.0,0.001]
[1763579449944,0.4996,2900.1,2900.0,0.001]
[1763579450652,0.4547,2900.8,2900.0,0.001]
[1763579450864,0.4996,2900.1,2900.0,0.001]
[1763579451348,0.9523,2900.1,2900.0,0.001]
[1763579452812,5.49337886,2900.1,2900.0,0.001]
[1763579453313,0.405504,2899.7,2899.4,0.001]
[1763579453513,0.4996,2899.5,2899.4,0.001]
[1763579453815,0.405504,2899.4,2897.9,0.1701]
[1763579454052,0.90699264,2899.2,2897.9,0.1701]
[1763579454349,0.90373614,2899.1,2897.9,0.1701]
[1763579454550,0.4527,2899.3,2897.9,0.1701]
[1763579454854,0.90699264,2899.1,2897.9,0.1701]
[1763579455214,0.858204,2899.0,2897.6,0.1711]
[1763579455646,0.6481,2898.9,2897.6,0.1711]
[1763579456056,0.4527,2898.8,2897.6,0.1711]
[1763579456255,0.4996,2898.1,2897.1,0.1711]
[1763579456556,0.4527,2898.8,2897.4,0.3283]
[1763579456718,0.90699264,2898.5,2897.4,0.3283]
[1763579457245,0.4527,2898.4,2897.4,0.3283]
[1763579457882,0.4527,2898.4,2897.1,0.1711]
[1763579458381,0.4527,2898.4,2897.3,0.3283]
[1763579458563,0.20571223,2898.7,2897.6,0.3283]
[1763579459080,0.4996,2898.1,2897.1,0.4994]
[1763579459239,1.35969264,2898.6,2897.1,0.1711]
[1763579459435,1.35969264,2898.6,2897.4,0.3283]
[1763579460269,0.4527,2898.5,2897.4,0.3283]
[1763579460470,0.90699264,2898.6,2897.4,0.3283]
[1763579460784,0.1954,2898.9,2897.1,0.1711]
[1763579460785,0.1954,2898.9,2897.3,0.405504]
[1763579460992,0.4527,2898.6,2897.3,0.405504]
[1763579461169,0.4996,2898.1,2897.1,0.1711]
[1763579461673,0.9523,2898.1,2896.5,0.3283]
[1763579462082,0.405504,2898.0,2896.5,0.1]
[1763579462398,0.90699264,2897.5,2896.5,0.1]
[1763579462685,0.90699264,2897.2,2896.4,0.001]
[1763579462894,0.1954,2896.6,2896.4,0.001]
[1763579463400,0.6481,2896.6,2896.4,0.001]
[1763579464686,0.1954,2896.6,2896.4,0.001]
[1763579464868,1.10239264,2897.1,2896.4,0.001]
[1763579465049,8.00588189,2897.1,2896.4,0.001]
[1763579465261,0.80058819,2897.0,2896.4,0.001]
[1763579465491,1.25328819,2897.0,2896.4,0.001]
[1763579465789,0.4996,2896.5,2896.4,0.001]
[1763579466006,0.4527,2896.9,2896.4,0.001]
[1763579466204,0.80058819,2897.0,2896.4,0.001]
[1763579466496,0.4527,2896.8,2896.4,0.001]
[1763579466882,1.35969264,2896.8,2896.4,0.001]
[1763579467081,0.1954,2897.3,2896.7,0.4643]
[1763579467401,0.1954,2897.3,2896.4,0.001]
[1763579467402,0.1954,2897.7,2896.4,0.001]
[1763579467571,0.4527,2897.5,2896.4,0.4944]
[1763579468289,0.4527,2897.5,2896.4,0.001]
[1763579468761,0.90699264,2897.3,2896.4,0.001]
[1763579469099,0.7809733,2897.2,2896.4,0.001]
[1763579469398,1.2376733,2897.2,2896.4,0.001]
[1763579469764,0.7809733,2897.2,2896.4,0.001]
[1763579470853,0.90699264,2897.0,2896.4,0.001]
[1763579471480,0.4567,2896.9,2896.4,0.001]
[1763579472310,0.4705,2896.5,2896.4,0.001]
[1763579472468,9.91336539,2896.5,2896.4,0.001]
[1763579472708,9.91336539,2896.5,2896.1,0.001]
[1763579472709,1.31249664,2896.4,2896.1,0.001]
[1763579473041,5.12649686,2896.2,2896.1,0.001]
[1763579473246,1.31249664,2896.1,2894.4,0.32233]
[1763579473403,0.1555,2895.6,2894.4,0.32233]
[1763579474031,0.1555,2895.6,2892.3,0.13848473]
[1763579474032,0.6122,2895.6,2892.3,0.13848473]
[1763579474242,0.6122,2895.6,2893.0,8.13036875]
[1763579474536,0.4567,2895.5,2893.3,0.69817149]
[1763579474699,0.405504,2894.9,2892.7,0.1]
[1763579474904,0.90699264,2894.6,2892.7,0.1]
[1763579475200,0.90699264,2894.6,2893.0,0.41036619]
[1763579475527,0.4567,2894.6,2893.0,0.3758]
[1763579475900,1.05248728,2894.8,2893.1,0.03456499]
[1763579476101,3.91043847,2895.5,2893.1,0.90699264]
[1763579476336,1.36369264,2895.5,2893.2,0.781304]
[1763579476533,0.4567,2895.4,2893.2,0.781304]
[1763579476734,0.4567,2895.4,2893.4,0.405504]
[1763579476945,0.90699264,2895.3,2893.4,0.405504]
[1763579477123,0.48174485,2895.2,2893.6,0.405504]
[1763579477329,0.48174485,2895.2,2893.7,0.03455783]
[1763579477641,1.36369264,2895.5,2893.8,0.405504]
[1763579478113,0.4567,2895.4,2894.0,0.405504]
[1763579478514,0.4567,2895.4,2894.1,0.3758]
[1763579478960,0.90699264,2895.3,2894.1,0.3758]
[1763579479251,0.90699264,2895.3,2893.6,0.3758]
[1763579479401,2.44224163,2895.2,2893.6,0.3758]
[1763579479826,0.4567,2895.1,2893.6,0.3758]
[1763579480040,0.405504,2894.8,2892.9,0.533]
[1763579480257,1.31249664,2894.8,2892.9,0.533]
[1763579480458,0.4567,2894.7,2893.0,0.3758]
[1763579480665,0.17691966,2894.6,2893.0,0.3758]
[1763579480861,0.17691966,2894.6,2893.1,0.03456499]
[1763579481165,0.90699264,2894.5,2893.0,0.405504]
[1763579481359,0.90699264,2894.5,2892.9,0.1572]
[1763579481360,0.90699264,2894.1,2892.9,0.1572]
[1763579481859,0.4567,2894.0,2892.9,0.1572]
[1763579482227,0.405504,2893.8,2892.7,0.1]
[1763579482665,0.4567,2893.7,2892.7,0.1]
[1763579483162,1.36369264,2893.7,2892.9,0.001]
[1763579483571,0.48194477,2893.6,2892.9,0.001]
[1763579483729,0.90699264,2893.8,2892.9,0.001]
[1763579483934,0.17691966,2894.6,2892.9,0.001]
[1763579483935,0.4567,2894.5,2893.7,0.1748]
[1763579484134,0.17691966,2894.6,2893.7,0.1748]
[1763579484332,0.90699264,2894.8,2893.7,0.1748]
[1763579484741,0.4567,2894.7,2893.7,0.1748]
[1763579484941,0.90699264,2894.5,2893.1,0.3758]
[1763579485343,0.4919,2894.4,2893.1,0.3758]
[1763579485678,0.4919,2894.6,2893.2,0.405504]
[1763579486037,0.4919,2894.6,2893.3,0.3758]
[1763579486545,0.4919,2894.6,2892.9,0.001]
[1763579486751,0.4919,2894.6,2893.0,0.405504]
[1763579487085,0.90699264,2894.5,2893.0,0.405504]
[1763579487292,0.48536561,2894.4,2892.9,0.001]
[1763579487572,0.90699264,2894.1,2892.9,0.001]
[1763579487975,0.4919,2894.0,2892.9,0.3768]
[1763579488344,0.193,2893.9,2892.9,0.001]
[1763579488889,0.193,2893.9,2892.9,0.3768]
[1763579489071,0.48536561,2894.4,2893.0,0.405504]
[1763579489243,1.3010133,2894.3,2893.1,0.3758]
[1763579489446,0.39402066,2894.3,2893.1,0.3758]
[1763579489668,0.90699264,2894.3,2893.1,0.3758]
[1763579489876,4.85374128,2894.5,2893.1,0.3758]
[1763579490078,0.1989,2895.0,2893.2,0.405504]
[1763579490281,0.1555,2895.6,2894.9,0.1748]
[1763579490482,1.12045145,2896.1,2894.9,0.1748]
[1763579490483,0.1989,2896.1,2894.9,0.1748]
[1763579490682,3.65183015,2896.1,2894.9,0.5506]
[1763579490978,0.41437301,2896.0,2894.9,0.5506]
[1763579491180,0.41437301,2896.0,2895.0,0.3758]
[1763579491504,0.90699264,2895.9,2894.9,0.1748]
[1763579491780,1.39889264,2895.9,2894.9,0.1748]
[1763579492147,0.90699264,2895.9,2894.9,0.5506]
[1763579492384,0.1989,2896.1,2895.0,0.3758]
[1763579492759,0.4919,2896.3,2895.0,0.3758]
[1763579492961,0.90699264,2896.2,2895.0,0.3758]
[1763579493484,0.57586173,2896.2,2895.0,0.3758]
[1763579493650,1.48285437,2896.2,2895.0,0.3758]
[1763579494194,0.4919,2896.5,2895.1,0.405504]
[1763579494356,0.4919,2896.4,2895.0,0.3758]
[1763579495192,0.90699264,2896.2,2895.0,0.3758]
[1763579495720,0.4919,2896.4,2895.0,0.3758]
[1763579495877,0.4919,2896.9,2895.1,0.405504]
[1763579496082,3.94386589,2896.9,2895.3,0.405504]
[1763579496385,7.39583178,2896.9,2895.3,0.405504]
[1763579496679,3.94386589,2896.9,2895.4,0.3758]
[1763579496899,6.90393178,2896.9,2895.4,0.3758]
[1763579497084,0.90699264,2896.6,2895.4,0.3758]
[1763579497430,0.43591969,2896.5,2895.4,0.3758]
[1763579497590,0.90699264,2896.7,2895.4,0.3758]
[1763579497777,0.193,2897.0,2895.5,0.405504]
[1763579497975,4.55189387,2897.0,2895.5,0.405504]
[1763579498215,8.0037951,2897.0,2895.6,0.3758]
[1763579498414,4.55189387,2897.0,2895.6,0.3758]
[1763579498611,0.90699264,2896.9,2895.6,0.3758]
[1763579498818,0.45518628,2896.8,2895.6,0.3758]
[1763579499389,0.90699264,2896.7,2895.6,0.3758]
[1763579499784,3.90733782,2896.8,2895.6,0.3758]
[1763579500207,7.35948936,2896.8,2895.6,0.3758]
[1763579500414,0.455,2896.7,2895.6,0.3758]
[1763579500727,0.18171789,2896.6,2895.6,0.3758]
[1763579501287,0.90699264,2896.5,2895.6,0.3758]
[1763579501512,1.08871053,2896.6,2895.6,0.3758]
[1763579501711,0.18171789,2896.6,2895.6,0.3758]
[1763579502111,0.90699264,2896.5,2895.6,0.3758]
[1763579502313,0.45410471,2896.4,2895.6,0.3758]
[1763579502514,7.08636658,2896.6,2895.3,0.3758]
[1763579503221,0.90699264,2896.5,2895.3,0.3758]
[1763579503426,4.35955213,2896.5,2895.3,0.3758]
[1763579503638,0.455,2896.4,2895.0,0.001]
[1763579503838,0.90699264,2896.2,2895.0,0.001]
[1763579503993,0.85446193,2896.1,2895.0,0.001]
[1763579504193,1.30946193,2896.1,2895.0,0.001]
[1763579504394,0.455,2896.0,2895.0,0.001]
[1763579504837,0.1978,2895.9,2895.0,0.001]
[1763579505322,0.4927,2895.1,2895.0,0.001]
[1763579506232,0.9477,2895.1,2895.0,0.001]
[1763579506522,4.40181212,2895.1,2895.0,0.001]
[1763579506725,1.73328123,2895.1,2895.0,0.001]